fUST/lending_fUST_20241003
["ID","MTS","AMOUNT","RATE_DAILY","PERIOD"]
[339743655,1727922648464,-151.0,0.00013699,2]
[339743656,1727922648474,-151.0,0.00013699,2]
[339743657,1727922648484,-151.0,0.00013699,2]
[339743658,1727922648493,-151.0,0.00013699,2]
[339743659,1727922648503,-151.215703,0.00013699,2]
[339743660,1727922648512,-218.516048,0.00013699,2]
[339743661,1727922648522,-151.0,0.00013699,2]
[339743662,1727922648531,-151.0,0.00013699,2]
[339743663,1727922648540,-151.0,0.00013699,2]
[339743664,1727922648549,-151.0,0.00013699,2]
[339743665,1727922648558,-421.627105,0.00013699,2]
[339743666,1727922648568,-421.627105,0.00013699,2]
[339743667,1727922648577,-421.627105,0.00013699,2]
[339743668,1727922648586,-421.627105,0.00013699,2]
[339743669,1727922648595,-419.347207,0.00013699,2]
[339743670,1727922648605,-280.846078,0.00013699,2]
[339743671,1727922648614,-419.347207,0.00013699,2]
[339743672,1727922648622,-280.846078,0.00013699,2]
[339743673,1727922648632,-280.846078,0.00013699,2]
[339743674,1727922648640,-280.846078,0.00013699,2]
[339743675,1727922648650,-419.347207,0.00013699,2]
[339743676,1727922648659,-419.347207,0.00013699,2]
[339743677,1727922648668,-151.0,0.00013699,2]
[339743678,1727922648676,-151.0,0.00013699,2]
[339743679,1727922648685,-151.0,0.00013699,2]
[339743680,1727922648696,-151.0,0.00013699,2]
[339743681,1727922648706,-151.0,0.00013699,2]
[339743682,1727922648716,-151.0,0.00013699,2]
[339743683,1727922648726,-364.775855,0.00013699,2]
[339743684,1727922648735,-364.775855,0.00013699,2]
[339743685,1727922648745,-151.0,0.00013699,2]
[339743686,1727922648755,-151.0,0.00013699,2]
[339743687,1727922648765,-151.229744,0.00013699,2]
[339743688,1727922648775,-151.0,0.00013699,2]
[339743689,1727922648784,-247.553405,0.00013699,2]
[339743690,1727922648793,-247.553405,0.00013699,2]
[339743691,1727922648803,-1003.962166,0.00013699,2]
[339743692,1727922648813,-1003.962166,0.00013699,2]
[339743693,1727922648822,-1003.962166,0.00013699,2]
[339743694,1727922648832,-1003.962166,0.00013699,2]
[339743695,1727922648841,-1169.470103,0.00013699,2]
[339743696,1727922648850,-1169.470103,0.00013699,2]
[339743697,1727922648859,-1169.470103,0.00013699,2]
[339743698,1727922648869,-1169.470103,0.00013699,2]
[339743699,1727922648878,-151.0,0.00013699,2]
[339743700,1727922648893,-224.793009,0.00013699,2]
[339743701,1727922648902,-224.793009,0.00013699,2]
[339743702,1727922648911,-224.793009,0.00013699,2]
[339743703,1727922648920,-224.793009,0.00013699,2]
[339743704,1727922648930,-451.752663,0.00013699,2]
[339743705,1727922648941,-451.752663,0.00013699,2]
[339743706,1727922648957,-451.752663,0.00013699,2]
[339743707,1727922648967,-451.752663,0.00013699,2]
[339743708,1727922648976,-151.0,0.00013699,2]
[339743709,1727922648987,-151.0,0.00013699,2]
[339743710,1727922648997,-151.0,0.00013699,2]
[339743711,1727922649007,-151.0,0.00013699,2]
[339743712,1727922649017,-151.0,0.00013699,2]
[339743713,1727922649027,-2994.390614,0.00013699,2]
[339743714,1727922649037,-232.463171,0.00013699,2]
[339743715,1727922649047,-232.463171,0.00013699,2]
[339743716,1727922649056,-151.0,0.00013699,2]
[339743717,1727922649067,-392.072349,0.00013699,2]
[339743718,1727922649077,-270.289664,0.00013699,2]
[339743719,1727922649091,-270.289664,0.00013699,2]
[339743720,1727922649101,-1263.2853,0.00013699,2]
[339743721,1727922649111,-1263.2853,0.00013699,2]
[339743722,1727922649120,-575.373228,0.00013699,2]
[339743723,1727922649130,-575.373228,0.00013699,2]
[339743724,1727922649140,-500.0,0.00013699,2]
[339743725,1727922649150,-150.0,0.00013699,2]
[339743726,1727922649160,-500.0,0.00013699,2]
[339743727,1727922649170,-500.0,0.00013699,2]
[339743728,1727922649179,-181.927304,0.00013699,2]
[339743729,1727922649189,-181.927304,0.00013699,2]
[339743730,1727922649201,-181.927304,0.00013699,2]
[339743731,1727922649211,-181.927304,0.00013699,2]
[339743732,1727922649220,-150.112233,0.000137,2]
[339743733,1727922649230,-150.112233,0.000137,2]
[339743734,1727922649240,-150.112233,0.000137,2]
[339743735,1727922649250,-150.112233,0.000137,2]
[339743736,1727922649259,-150.112233,0.000137,2]
[339743737,1727922649268,-150.112233,0.000137,2]
[339743738,1727922649278,-150.112233,0.000137,2]
[339743739,1727922649287,-150.112233,0.000137,2]
[339743740,1727922649297,-151.0,0.000137,2]
[339743741,1727922649307,-247.553405,0.000137,2]
[339743742,1727922649317,-247.553405,0.000137,2]
[339743743,1727922649326,-3025.65,0.000137,2]
[339743744,1727922649336,-392.072349,0.000137,2]
[339743745,1727922649349,-151.0,0.00013705,2]
[339743746,1727922649557,-151.0,0.00013705,2]
[339743747,1727922649570,-152.372658,0.00013705,2]
[339743748,1727922649579,-232.463171,0.00013705,2]
[339743749,1727922649589,-232.463171,0.00013705,2]
[339743750,1727922649599,-151.0,0.00013705,2]
[339743751,1727922649608,-151.0,0.00013705,2]
[339743752,1727922649618,-151.0,0.00013705,2]
[339743753,1727922649627,-323.845553,0.00013705,2]
[339743754,1727922649636,-323.845553,0.00013705,2]
[339743755,1727922649645,-323.845553,0.00013705,2]
[339743756,1727922649655,-151.0,0.00013705,2]
[339743757,1727922649664,-323.845553,0.00013705,2]
[339743758,1727922649674,-151.0,0.00013705,2]
[339743759,1727922649684,-1263.2853,0.00013705,2]
[339743760,1727922649696,-1263.2853,0.00013705,2]
[339743761,1727922649705,-151.0,0.00013705,2]
[339743762,1727922649715,-151.417237,0.00013705,2]
[339743763,1727922649725,-152.045827,0.00013705,2]
[339743764,1727922649734,-575.373228,0.00013705,2]
[339743765,1727922649744,-575.373228,0.00013705,2]
[339743766,1727922649753,-151.0,0.00013705,2]
[339743767,1727922649763,-151.0,0.00013705,2]
[339743768,1727922649772,-151.0,0.00013705,2]
[339743769,1727922649781,-151.0,0.00013705,2]
[339743770,1727922649791,-151.0,0.00013705,2]
[339743771,1727922649802,-151.0,0.00013705,2]
[339743772,1727922649813,-151.0,0.00013705,2]
[339743773,1727922649822,-151.0,0.00013705,2]
[339743774,1727922649833,-151.0,0.00013705,2]
[339743775,1727922649845,-284.88842,0.00013705,2]
[339743776,1727922649857,-385.065579,0.00013705,2]
[339743777,1727922649867,-385.065579,0.00013705,2]
[339743778,1727922649876,-385.065579,0.00013705,2]
[339743779,1727922649885,-385.065579,0.00013705,2]
[339743780,1727922649894,-1542.626316,0.00013705,2]
[339743781,1727922649904,-1542.626316,0.00013705,2]
[339743782,1727922649914,-1542.626316,0.00013705,2]
[339743783,1727922649926,-1542.626316,0.00013705,2]
[339743784,1727922649937,-151.0,0.00013705,2]
[339743785,1727922649951,-151.0,0.00013705,2]
[339743786,1727922649963,-151.0,0.00013705,2]
[339743787,1727922649972,-151.0,0.00013705,2]
[339743788,1727922649982,-151.0,0.00013705,2]
[339743789,1727922649991,-151.0,0.00013705,2]
[339743790,1727922650000,-151.0,0.00013705,2]
[339743791,1727922650009,-151.0,0.00013705,2]
[339743792,1727922650019,-192.451903,0.00013705,2]
[339743793,1727922650028,-151.0,0.00013705,2]
[339743794,1727922650037,-192.451903,0.00013705,2]
[339743795,1727922650048,-151.0,0.00013705,2]
[339743796,1727922650057,-192.451903,0.00013705,2]
[339743797,1727922650067,-192.451903,0.00013705,2]
[339743798,1727922650077,-151.0,0.00013705,2]
[339743799,1727922650089,-151.0,0.00013705,2]
[339743800,1727922650098,-151.0,0.00013705,2]
[339743801,1727922650107,-151.0,0.00013705,2]
[339743802,1727922650117,-1412.216384,0.00013705,2]
[339743803,1727922650127,-1412.216384,0.00013705,2]
[339743804,1727922650138,-151.0,0.00013705,2]
[339743805,1727922650148,-151.0,0.00013705,2]
[339743806,1727922650159,-1412.216384,0.00013705,2]
[339743807,1727922650172,-1412.216384,0.00013705,2]
[339743808,1727922650181,-233.304502,0.00013705,2]
[339743809,1727922650205,-233.304502,0.00013705,2]
[339743810,1727922650214,-233.304502,0.00013705,2]
[339743811,1727922650224,-233.304502,0.00013705,2]
[339743812,1727922650234,-151.282519,0.00013705,2]
[339743813,1727922650244,-151.282519,0.00013705,2]
[339743814,1727922650253,-151.0,0.00013705,2]
[339743815,1727922650263,-151.0,0.00013705,2]
[339743816,1727922650272,-151.0,0.00013705,2]
[339743817,1727922650282,-155.437433,0.00013705,2]
[339743818,1727922650292,-151.282519,0.00013705,2]
[339743819,1727922650301,-151.282519,0.00013705,2]
[339743820,1727922650311,-1030.39298204,0.00013705,2]
[339743850,1727923273891,266.0,0.000209,120]
[339743852,1727923423206,265.0,0.000209,120]
[339743854,1727923534429,-300.0,0.00012597,2]
[339743855,1727923534453,-1527.80211723,0.00012598,2]
[339743856,1727923545103,-2798.31898236,0.00012598,2]
[339743857,1727923638135,-300.0,0.00012496,2]
[339743858,1727923638159,-273.10145033,0.00012497,2]
[339743859,1727923751144,-500.0,0.00011164,2]
[339743860,1727923751167,-300.0,0.00012496,2]
[339743861,1727923751189,-45424.43217364,0.00012497,2]
[339743862,1727923751209,-3987.59871808,0.00012497,2]
[339743863,1727923751231,-17646.88475015,0.0001252,2]
[339743879,1727923832632,-900.0,0.0001252,2]
[339743880,1727923832645,-215.93523765,0.0001252,2]
[339743881,1727923832654,-366.03532381,0.00012603,2]
[339743882,1727923832665,-346.46467619,0.00012603,2]
[339743883,1727923832676,-1803.1439743,0.00012617,2]
[339743884,1727923832688,-227.0,0.0001354,2]
[339743885,1727923832698,-150.0,0.000136,2]
[339743886,1727923832710,-150.0,0.0001369,2]
[339743887,1727923832720,-525.0,0.0001369,2]
[339743888,1727923832730,-1218.0,0.0001369,2]
[339743889,1727923832742,-150.202,0.0001369,2]
[339743890,1727923832752,-300.0,0.00013698,2]
[339743891,1727923832764,-500.0,0.00013699,2]
[339743892,1727923832774,-500.0,0.00013699,2]
[339743893,1727923832783,-166.666666,0.00013699,2]
[339743894,1727923832794,-1516.518205,0.00013699,2]
[339743895,1727923832804,-1530.71208815,0.00013699,2]
[339743920,1727923838627,-203.08912414,0.00013699,2]
[339743921,1727923838640,-2514.52774477,0.00013699,2]
[339743922,1727923838652,-1721.24219694,0.00013699,2]
[339743923,1727923838662,-151.0,0.00013699,2]
[339743924,1727923838671,-151.0,0.00013699,2]
[339743926,1727923838681,-151.0,0.00013699,2]
[339743927,1727923838691,-151.0,0.00013699,2]
[339743928,1727923838700,-151.541206,0.00013699,2]
[339743929,1727923838709,-397.94511901,0.000137,2]
[339743931,1727923838736,-1938.63892331,0.000137,2]
[339743938,1727923840643,-439.02595768,0.000137,2]
[339743940,1727923840655,-62.95613003,0.00013704,2]
[339743941,1727923840669,-450.07461166,0.00013704,2]
[339743942,1727923840681,-285.29888257,0.00013704,2]
[339743943,1727923840693,-1118.74268512,0.00013704,2]
[339743944,1727923840702,-151.0,0.00013705,2]
[339743945,1727923840712,-151.0,0.00013705,2]
[339743946,1727923840721,-151.0,0.00013705,2]
[339743947,1727923840731,-151.0,0.00013705,2]
[339743948,1727923840741,-151.0,0.00013705,2]
[339743949,1727923840751,-151.0,0.00013715,2]
[339743950,1727923840761,-151.0,0.00013715,2]
[339743951,1727923840770,-151.0,0.00013725,2]
[339743952,1727923840780,-151.0,0.00013725,2]
[339743953,1727923840790,-182.567009,0.00013738,2]
[339743954,1727923840800,-151.0,0.00013738,2]
[339743955,1727923840810,-151.0,0.00013738,2]
[339743956,1727923840820,-12920.8855323,0.00013742,2]
[339743957,1727923840831,-500.0,0.00013751,2]
[339743958,1727923840841,-500.0,0.00013751,2]
[339743959,1727923840851,-214.05816909,0.00013751,2]
[339743960,1727923840860,-500.0,0.00013751,2]
[339743961,1727923840869,-500.0,0.00013751,2]
[339743962,1727923840879,-500.0,0.00013751,2]
[339743963,1727923840888,-500.0,0.00013751,2]
[339743964,1727923840898,-500.0,0.00013751,2]
[339743965,1727923840907,-500.0,0.00013751,2]
[339743966,1727923840916,-500.0,0.00013751,2]
[339743967,1727923840926,-500.0,0.00013751,2]
[339743968,1727923840938,-500.0,0.00013751,2]
[339743969,1727923840949,-500.0,0.00013751,2]
[339743970,1727923840959,-500.0,0.00013751,2]
[339743971,1727923840968,-500.0,0.00013751,2]
[339743972,1727923840979,-500.0,0.00013751,2]
[339743973,1727923840990,-500.0,0.00013751,2]
[339743974,1727923840999,-500.0,0.00013751,2]
[339743975,1727923841009,-500.0,0.00013751,2]
[339743976,1727923841018,-500.0,0.00013751,2]
[339743977,1727923841027,-500.0,0.00013751,2]
[339743978,1727923841036,-500.0,0.00013751,2]
[339743979,1727923841046,-500.0,0.00013751,2]
[339743980,1727923841055,-500.0,0.00013751,2]
[339743981,1727923841064,-500.0,0.00013751,2]
[339743982,1727923841074,-500.0,0.00013751,2]
[339743983,1727923841085,-351.71113919,0.00013751,2]
[339743984,1727923841097,-150.0,0.00013752,2]
[339743985,1727923841108,-213.87861659,0.00013752,2]
[339743986,1727923841119,-500.0,0.00013752,2]
[339743987,1727923841128,-500.0,0.00013752,2]
[339743988,1727923841139,-151.0,0.00013753,2]
[339743989,1727923841150,-151.0,0.00013753,2]
[339743990,1727923841161,-252.0,0.0001377,2]
[339743991,1727923841172,-150.0,0.00013779,2]
[339743992,1727923841183,-500.0,0.00013779,2]
[339743993,1727923841192,-500.0,0.00013779,2]
[339743994,1727923841202,-151.0,0.00013799,2]
[339743995,1727923841211,-151.0,0.00013799,2]
[339743996,1727923841220,-151.0,0.00013799,2]
[339743997,1727923841230,-151.0,0.00013799,2]
[339743998,1727923841240,-151.0,0.00013799,2]
[339743999,1727923841249,-151.0,0.00013799,2]
[339744000,1727923841259,-150.112233,0.000138,2]
[339744001,1727923841269,-150.112233,0.000138,2]
[339744002,1727923841278,-153.0,0.000138,2]
[339744003,1727923841288,-150.0,0.00013807,2]
[339744004,1727923841298,-500.0,0.00013807,2]
[339744005,1727923841308,-500.0,0.00013807,2]
[339744006,1727923841320,-150.0,0.0001382,2]
[339744007,1727923841330,-3200.0,0.0001382,2]
[339744008,1727923841340,-150.0,0.00013834,2]
[339744009,1727923841349,-692.57491403,0.00013834,2]
[339744010,1727923841360,-500.0,0.00013834,2]
[339744011,1727923841371,-150.0,0.00013862,2]
[339744012,1727923841380,-500.0,0.00013862,2]
[339744013,1727923841390,-245.78383162,0.00013889,2]
[339744014,1727923841400,-500.0,0.00013889,2]
[339744015,1727923841409,-584.84795388,0.00013904,2]
[339744016,1727923841425,-182.567009,0.00013907,2]
[339744017,1727923841435,-500.0,0.00013916,2]
[339744018,1727923841446,-500.0,0.00013944,2]
[339744019,1727923841458,-500.0,0.00013952,2]
[339744020,1727923841469,-500.0,0.00013971,2]
[339744021,1727923841478,-500.0,0.00013972,2]
[339744022,1727923841489,-500.0,0.00013972,2]
[339744023,1727923841500,-500.0,0.00013972,2]
[339744024,1727923841510,-500.0,0.00013972,2]
[339744025,1727923841521,-500.0,0.00013972,2]
[339744026,1727923841530,-533.2868464,0.00013972,2]
[339744027,1727923841540,-151.0,0.00013972,2]
[339744028,1727923841550,-151.0,0.00013972,2]
[339744029,1727923841561,-151.0,0.00013972,2]
[339744030,1727923841570,-151.0,0.00013972,2]
[339744031,1727923841581,-151.0,0.00013972,2]
[339744032,1727923841591,-500.0,0.00013999,2]
[339744033,1727923841601,-182.0,0.00014,10]
[339744034,1727923841611,-500.0,0.00014,2]
[339744035,1727923841621,-500.0,0.00014,2]
[339744036,1727923841631,-296.15531764,0.00014,2]
[339744037,1727923841642,-1000.0,0.00014,2]
[339744038,1727923841653,-12920.8855323,0.00014008,2]
[339744039,1727923841662,-160.478457,0.00014018,2]
[339744040,1727923841672,-160.478457,0.00014018,2]
[339744041,1727923841682,-166.666666,0.00014019,2]
[339744042,1727923841692,-500.0,0.00014026,2]
[339744043,1727923841703,-478.13571489,0.00014027,2]
[339744044,1727923841712,-206.34958274,0.00014027,2]
[339744045,1727923841722,-177.83930633,0.00014027,2]
[339744046,1727923841732,-151.0,0.00014028,2]
[339744047,1727923841742,-151.0,0.00014028,2]
[339744048,1727923841753,-173.43192,0.00014028,2]
[339744049,1727923841763,-151.0,0.00014028,2]
[339744050,1727923841774,-151.0,0.00014028,2]
[339744051,1727923841783,-151.0,0.00014028,2]
[339744052,1727923841794,-253.918876,0.00014028,2]
[339744053,1727923841803,-160.478457,0.00014028,2]
[339744054,1727923841814,-160.478457,0.00014028,2]
[339744055,1727923841824,-151.0,0.00014028,2]
[339744056,1727923841835,-151.472298,0.00014028,2]
[339744057,1727923841845,-151.0,0.00014028,2]
[339744058,1727923841855,-292.567771,0.00014028,2]
[339744059,1727923841864,-151.0,0.00014028,2]
[339744060,1727923841874,-151.0,0.00014028,2]
[339744061,1727923841884,-238.054595,0.00014028,2]
[339744062,1727923841894,-238.054595,0.00014028,2]
[339744063,1727923841904,-224.676862,0.00014028,2]
[339744064,1727923841914,-224.676862,0.00014028,2]
[339744065,1727923841924,-151.0,0.00014028,2]
[339744066,1727923841933,-4705.105485,0.00014037,2]
[339744067,1727923841946,-935.89830891,0.00014037,2]
[339744068,1727923843771,-2206.59332657,0.00014037,2]
[339744070,1727923843937,-310.92433137,0.00014037,2]
[339744071,1727923843949,-2525.9505665,0.00014037,2]
[339744075,1727924403427,500.0,0.0001,2]
[339744076,1727924404582,500.0,0.0001,2]
[339744077,1727924404716,500.0,0.0001,2]
[339744078,1727924405049,500.0,0.0001,2]
[339744079,1727924405414,476.0228558,0.0001,2]
[339744080,1727924489923,242.0,0.000209,120]
[339744081,1727924500331,150.0,0.0001,2]
[339744083,1727924839125,-152.10783,0.00011,2]
[339744084,1727924839148,-726.884439,0.00012603,2]
[339744085,1727924839171,-525.0,0.00013353,2]
[339744086,1727924839192,-150.0,0.00013353,2]
[339744087,1727924839214,-199.70612252,0.00013353,2]
[339744088,1727925012951,783.84,0.00010959,2]
[339744185,1727925038673,-676.875,0.00012603,2]
[339744186,1727925038684,-1018.29387748,0.00013353,2]
[339744187,1727925038695,-298.252,0.0001369,2]
[339744188,1727925038705,-300.0,0.00013698,2]
[339744189,1727925038716,-500.0,0.00013699,2]
[339744190,1727925038727,-500.0,0.00013699,2]
[339744191,1727925038738,-166.666666,0.00013699,2]
[339744192,1727925038748,-3979.714102,0.00013699,2]
[339744193,1727925038758,-758.259102,0.00013699,2]
[339744194,1727925038769,-2498.05,0.000137,2]
[339744195,1727925038779,-232.0,0.0001371,2]
[339744196,1727925038788,-1996.86925252,0.0001385,2]
[339744199,1727925039064,-375.06187684,0.0001385,2]
[339744216,1727925561643,228.0,0.000209,120]
[339744218,1727925967075,185.0,0.0002101,120]
[339744224,1727926149504,-593.04788831,0.0001021,2]
[339744225,1727926149530,-500.0,0.00010267,2]
[339744226,1727926149555,-500.0,0.00010807,2]
[339744227,1727926149580,-500.0,0.00011376,2]
[339744228,1727926149604,-180.2065016,0.00011398,2]
[339744229,1727926149628,-500.0,0.00011975,2]
[339744295,1727926240986,-398.35259597,0.00012603,2]
[339744311,1727926247342,-244.67865403,0.00012603,2]
[339744312,1727926247353,-500.0,0.00012605,2]
[339744313,1727926247366,-307.206924,0.00013078,2]
[339744314,1727926247376,-500.0,0.00013235,2]
[339744315,1727926247386,-2649.10549673,0.00013599,2]
[339744316,1727926247399,-300.0,0.00013697,2]
[339744317,1727926247409,-620.4,0.00013698,2]
[339744318,1727926247419,-500.0,0.00013698,2]
[339744319,1727926247428,-500.0,0.00013698,2]
[339744320,1727926247438,-156.63543391,0.00013698,2]
[339744321,1727926247447,-500.0,0.00013698,2]
[339744322,1727926247456,-500.0,0.00013698,2]
[339744323,1727926247466,-500.0,0.00013698,2]
[339744324,1727926247476,-500.0,0.00013698,2]
[339744325,1727926247485,-500.0,0.00013698,2]
[339744326,1727926247495,-166.666666,0.00013699,2]
[339744327,1727926247506,-2653.142734,0.00013699,2]
[339744328,1727926247515,-379.129551,0.00013699,2]
[339744329,1727926247527,-20813.23851979,0.00013699,2]
[339744330,1727926247537,-10822.49280879,0.00013699,2]
[339744331,1727926247551,-519.35176481,0.00013699,2]
[339744332,1727926296702,253.0,0.000209,120]
[339744333,1727926336013,1676.05708638,0.000118,2]
[339744334,1727926336036,389.81747787,0.000118,2]
[339744337,1727927150150,-301.43026992,0.00011517,2]
[339744339,1727927349481,-198.56973008,0.00011517,2]
[339744340,1727927349502,-500.0,0.00012124,2]
[339744341,1727927349523,-300.0,0.00012372,2]
[339744342,1727927349544,-300.0,0.00012372,2]
[339744343,1727927349566,-3297.06054241,0.00012373,2]
[339744344,1727927358071,228.0,0.000209,120]
[339744345,1727927360164,-21602.93945759,0.00012373,2]
[339744430,1727927432353,-610.879687,0.00012603,2]
[339744432,1727927432363,-500.0,0.0001273,2]
[339744434,1727927432373,-4091.0,0.00013,2]
[339744436,1727927432384,-500.0,0.00013366,2]
[339744438,1727927432394,-300.0,0.0001359,2]
[339744440,1727927432404,-300.0,0.0001359,2]
[339744442,1727927432414,-7067.94404438,0.00013591,2]
[339744444,1727927432424,-1000.0,0.00013592,2]
[339744446,1727927432435,-17634.22390405,0.00013599,2]
[339744448,1727927432446,-163.46368727,0.00013599,2]
[339744450,1727927432457,-576.70177332,0.00013601,2]
[339744452,1727927432468,-150.0,0.00013658,2]
[339744453,1727927432478,-23761.03317895,0.00013677,2]
[339744454,1727927432498,-5307.47999749,0.00013677,2]
[339744488,1727927437980,-9352.15765077,0.00013677,2]
[339744489,1727927437990,-10335.83986542,0.00013678,2]
[339744490,1727927438012,-1099.71476068,0.00013678,2]
[339744492,1727927438022,-151.0,0.00013678,2]
[339744494,1727927438031,-891.28523932,0.00013678,2]
[339744518,1727927443126,-238.48786768,0.00013678,2]
[339744519,1727927443137,-1129.773107,0.00013678,2]
[339744520,1727927443146,-151.0,0.00013678,2]
[339744521,1727927443156,-151.0,0.00013678,2]
[339744522,1727927443168,-151.0,0.00013678,2]
[339744523,1727927443178,-151.0,0.00013678,2]
[339744524,1727927443187,-1027.73902532,0.00013679,2]
[339744525,1727927443200,-345.42621572,0.00013679,2]
[339744559,1727927522207,250.81,0.00010959,2]
[339744560,1727927532971,209.01,0.00010959,2]
[339744561,1727927543706,226.58,0.00010959,2]
[339744563,1727928340118,-188.82,0.00010959,2]
[339744564,1727928340140,-157.35,0.00010959,2]
[339744565,1727928340160,-786.75,0.00010959,2]
[339744566,1727928340180,-300.0,0.0001186,2]
[339744567,1727928340201,-300.0,0.0001186,2]
[339744568,1727928340222,-107.17990069,0.00011861,2]
[339744569,1727928422556,228.0,0.000209,120]
[339744570,1727928425139,-300.0,0.0001186,2]
[339744571,1727928425161,-300.0,0.0001186,2]
[339744572,1727928425184,-320.92655489,0.00011861,2]
[339744573,1727928546121,-300.0,0.0001186,2]
[339744574,1727928546146,-9765.58039852,0.00011861,2]
[339744575,1727928563109,-14706.3131459,0.00011861,2]
[339744576,1727928563131,-159.32854,0.00012106,2]
[339744577,1727928563154,-159.32854,0.00012139,2]
[339744578,1727928563177,-159.32854,0.00012172,2]
[339744579,1727928563199,-159.32854,0.00012205,2]
[339744580,1727928563222,-159.32854,0.00012238,2]
[339744581,1727928563245,-159.32854,0.00012272,2]
[339744582,1727928563269,-159.32854,0.00012305,2]
[339744583,1727928563291,-159.32854,0.00012338,2]
[339744584,1727928563314,-159.32854,0.00012371,2]
[339744585,1727928563335,-159.32854,0.00012404,2]
[339744586,1727928563357,-159.32854,0.00012438,2]
[339744587,1727928563380,-159.32854,0.00012471,2]
[339744588,1727928563403,-159.32854,0.00012504,2]
[339744589,1727928563430,-159.32854,0.00012537,2]
[339744590,1727928563451,-159.32854,0.0001257,2]
[339744676,1727928637986,-580.335703,0.00012603,2]
[339744678,1727928637997,-159.32854,0.00012604,2]
[339744680,1727928638007,-159.32854,0.00012637,2]
[339744682,1727928638018,-159.32854,0.0001267,2]
[339744684,1727928638029,-159.32854,0.00012703,2]
[339744686,1727928638039,-159.32854,0.00012736,2]
[339744688,1727928638049,-133.32890555,0.0001288,2]
[339744700,1727928638186,-18.32943854,0.0001288,2]
[339744702,1727928638198,-211.0,0.0001302,2]
[339744703,1727928638207,-153.0,0.00013507,2]
[339744704,1727928638217,-2549.1642673,0.00013548,2]
[339744706,1727928638226,-1197.76893194,0.00013562,2]
[339744707,1727928638235,-519.03159597,0.00013578,2]
[339744709,1727928638244,-3000.0,0.00013592,2]
[339744710,1727928638254,-5000.0,0.000136,2]
[339744712,1727928638263,-150.0,0.00013642,2]
[339744713,1727928638273,-187.73692711,0.00013647,2]
[339744714,1727928638282,-24821.2154637,0.00013648,2]
[339744715,1727928638291,-151.0,0.00013648,2]
[339744716,1727928638301,-24821.2154637,0.00013649,2]
[339744717,1727928638310,-151.0,0.00013651,2]
[339744718,1727928638320,-15828.976316,0.00013651,2]
[339744719,1727928638332,-22794.62982885,0.00013656,2]
[339744720,1727928638342,-24621.58181799,0.00013657,2]
[339744721,1727928638350,-151.0,0.00013657,2]
[339744722,1727928638360,-151.0,0.00013657,2]
[339744723,1727928638369,-151.0,0.00013657,2]
[339744724,1727928638380,-23452.18926953,0.00013657,2]
[339744744,1727928646126,-8205.76336247,0.00013657,2]
[339744745,1727928646138,-49642.4309275,0.00013657,2]
[339744746,1727928646149,-15828.976316,0.00013658,2]
[339744747,1727928646158,-49642.4309275,0.00013658,2]
[339744748,1727928646168,-151.0,0.00013658,2]
[339744749,1727928646178,-151.0,0.00013658,2]
[339744750,1727928646188,-151.0,0.00013658,2]
[339744751,1727928646198,-151.0,0.00013658,2]
[339744752,1727928646209,-151.0,0.00013658,2]
[339744753,1727928646219,-223.749774,0.00013658,2]